[Event "FIDE World Cadets U8 2022"]
[Site "Batumi"]
[Date "2022.09.17"]
[Round "2.36"]
[White "Jakhria, Kushal"]
[Black "Avyaay Garg"]
[Result "1-0"]
[ECO "D45"]
[WhiteElo "1823"]
[BlackElo "1275"]
[Annotator "NA COMBH"]
[PlyCount "71"]
[EventDate "2022.09.16"]
[EventType "swiss"]
[EventCountry "GEO"]
[SourceTitle "playchess.com"]
[Source "ChessBase"]
[SourceQuality "1"]
[TimeControl "5400+30"]

1. d4 {[%emt 0:01:00]} d5 {[%emt 0:01:00]} 2. c4 {[%emt 0:00:00]} c6 {[%emt 0:00:30]} 3. Nc3 {[%emt 0:00:00]} e6 {[%emt 0:00:00]} 4. e3 {[%emt 0:00:00]} Nf6 {[%emt 0:00:00]} 5. Nf3 {[%emt 0:00:00]} Nbd7 {[%emt 0:00:30]} 6. Be2 {[%emt 0:00:30]} Bd6 {[%emt 0:00:30]} 7. O-O {[%emt 0:00:30]} O-O {[%emt 0:00:30]} 8. b3 {[%emt 0:00:30]} b6 {[%emt 0:00:30]} 9. Bb2 {[%emt 0:00:00]} Bb7 {[%emt 0:00:30]} 10. Bd3 {[%emt 0:00:00]} dxc4 {[%emt 0:00:30]} 11. bxc4 {[%emt 0:02:30]} h6 {[%emt 0:00:30]} 12. e4 {[%emt 0:16:30]} Nh7 {[%emt 0:05:30]} 13. e5 {[%emt 0:16:30]} Bc7 {[%emt 0:00:30]} 14. Qc2 {[%emt 0:08:30]} f5 {[%emt 0:02:30]} 15. Rfe1 {[%emt 0:10:30]} Ng5 {[%emt 0:08:30]} 16. Nh4 {[%emt 0:05:30]} Qe8 {[%emt 0:02:30]} 17. f4 {[%emt 0:07:30]} Nh7 {[%emt 0:00:30]} 18. d5 {[%emt 0:02:30]} g5 {[%emt 0:02:30]} 19. dxe6 {[%emt 0:05:30]} gxh4 {[%emt 0:01:30]} 20. Bxf5 {[%emt 0:02:30]} Ndf6 {[%emt 0:01:30]} 21. exf6 {[%emt 0:01:33]} Nxf6 {[%emt 0:00:00]} 22. e7 {[%emt 0:01:40]} Rf7 {[%emt 0:01:00]} 23. Be6 {[%emt 0:01:26]} Qxe7 {[%emt 0:00:30]} 24. Qg6+ {[%emt 0:00:48]} Kf8 {[%emt 0:03:30]} 25. Qxh6+ {[%emt 0:00:58]} Rg7 {[%emt 0:00:30]} 26. Qh8+ {[%emt 0:00:49]} Ng8 {[%emt 0:00:30]} 27. Bxg8 {[%emt 0:01:09]} Rxg8 {[%emt 0:00:30]} 28. Qxg8+ {[%emt 0:00:09]} Kxg8 {[%emt 0:00:30]} 29. Rxe7 {[%emt 0:00:00]} Rc8 {[%emt 0:00:00]} 30. Rd1 {[%emt 0:02:56]} b5 {[%emt 0:00:00]} 31. Rdd7 {[%emt 0:00:49]} Bb6+ {[%emt 0:00:30]} 32. Kf1 {[%emt 0:00:22]} Ba6 {[%emt 0:00:00]} 33. Ne4 {[%emt 0:00:28]} Rf8 {[%emt 0:01:00]} 34. Rg7+ {[%emt 0:00:55]} Kh8 {[%emt 0:00:30]} 35. Rh7+ {[%emt 0:00:00]} Kg8 {[%emt 0:00:30]} 36. Rh8# {[%emt 0:00:05]} 1-0

[Event "FIDE World Cadets U8 2022"]
[Site "Batumi"]
[Date "2022.09.17"]
[Round "2.38"]
[White "Shogdzhiev, Roman Sav"]
[Black "Faramarzi Garousi, Maartia"]
[Result "1-0"]
[ECO "C54"]
[WhiteElo "1715"]
[BlackElo "1267"]
[Annotator "NA COMBH"]
[PlyCount "111"]
[EventDate "2022.09.16"]
[EventType "swiss"]
[EventCountry "GEO"]
[SourceTitle "playchess.com"]
[Source "ChessBase"]
[SourceQuality "1"]
[TimeControl "5400+30"]

1. e4 e5 2. Nf3 Nc6 3. Bc4 Bc5 4. c3 Nf6 5. d4 exd4 6. e5 d5 7. Bb5 Ne4 8. cxd4 Bb6 9. Nc3 Bf5 10. Be3 O-O 11. O-O a6 12. Bxc6 bxc6 13. Rc1 Qd7 14. Qe2 Ba5 15. Nh4 Nxc3 16. bxc3 Bg4 17. f3 Be6 18. f4 Bg4 19. Qd3 Qe7 20. Bf2 Bd7 21. Be1 Rfb8 22. Nf5 Bxf5 23. Qxf5 Rb2 24. Qg4 Re8 25. Bh4 Qf8 26. Rf3 c5 27. Bf6 Kh8 28. Bh4 Bb6 29. Bf2 Rxa2 30. f5 a5 31. f6 g6 32. h4 h5 33. Qf4 Kh7 34. Be3 a4 35. g4 hxg4 36. Qxg4 cxd4 37. cxd4 Re2 38. Rh3 Rxe3 39. Rxe3 Qh6 40. Rce1 Ba5 41. R1e2 Rb8 42. Qd7 Rb1+ 43. Kg2 Qf8 44. e6 Rb8 45. Qxf7+ Qxf7 46. exf7 Bb4 47. Re8 Rb6 {[%emt 1:50:36]} 48. R2e7 {[%emt 1:50:24]} Bxe7 {[%emt 0:00:30]} 49. Rxe7 {[%emt 0:00:30]} Rb2+ {[%emt 0:00:30]} 50. Kg3 {[%emt 0:00:30]} Rb3+ {[%emt 0:00:30]} 51. Kg4 {[%emt 0:00:30]} Rg3+ {[%emt 0:00:30]} 52. Kxg3 {[%emt 0:00:30]} Kh6 {[%emt 0:00:30]} 53. f8=Q+ {[%emt 0:00:30]} Kh5 {[%emt 0:00:30]} 54. Re5+ {[%emt 0:00:30]} g5 {[%emt 0:00:30]} 55. Qf7+ {[%emt 0:00:30]} Kh6 {[%emt 0:00:30]} 56. hxg5# {[%emt 0:00:14]} 1-0

[Event "FIDE World Cadets U8 2022"]
[Site "Batumi"]
[Date "2022.09.17"]
[Round "2.39"]
[White "Eshpulatov, Islombek"]
[Black "Annapureddy, Rheyansh Reddy"]
[Result "0-1"]
[ECO "B35"]
[WhiteElo "1274"]
[BlackElo "1698"]
[Annotator "NA COMBH"]
[PlyCount "40"]
[EventDate "2022.09.16"]
[EventType "swiss"]
[EventCountry "GEO"]
[SourceTitle "playchess.com"]
[Source "ChessBase"]
[SourceQuality "1"]
[TimeControl "5400+30"]

1. e4 {[%emt 0:02:00]} c5 {[%emt 0:01:00]} 2. Nc3 {[%emt 0:00:30]} g6 {[%emt 0:00:00]} 3. Nge2 {[%emt 0:01:30]} Nc6 {[%emt 0:00:00]} 4. d4 {[%emt 0:01:30]} cxd4 {[%emt 0:00:30]} 5. Nxd4 {[%emt 0:01:30]} Bg7 {[%emt 0:00:00]} 6. Be3 {[%emt 0:05:30]} Nf6 {[%emt 0:00:00]} 7. f3 {[%emt 0:00:30]} O-O {[%emt 0:00:30]} 8. Bc4 {[%emt 0:01:30]} Qb6 {[%emt 0:00:30]} 9. Bb3 {[%emt 0:01:30]} Nxe4 {[%emt 0:00:30]} 10. fxe4 {[%emt 0:01:30]} Bxd4 {[%emt 0:00:30]} 11. Na4 {[%emt 0:00:00]} Qa5+ {[%emt 0:00:30]} 12. Bd2 {[%emt 0:00:00]} Qc7 {[%emt 0:00:30]} 13. Qf3 {[%emt 0:06:30]} d6 {[%emt 0:02:30]} 14. O-O-O {[%emt 0:00:30]} Bg7 {[%emt 0:02:30]} 15. Rdf1 {[%emt 0:09:30]} Ne5 {[%emt 0:01:30]} 16. Qg3 {[%emt 0:02:30]} Be6 {[%emt 0:02:30]} 17. Bxe6 {[%emt 0:02:30]} fxe6 {[%emt 0:00:00]} 18. h4 {[%emt 0:00:30]} Rxf1+ {[%emt 0:00:00]} 19. Rxf1 {[%emt 0:00:30]} Qc4 {[%emt 0:00:00]} 20. Rh1 {[%emt 0:00:30]} Qxa4 0-1

[Event "FIDE World Cadets U8 2022"]
[Site "Batumi"]
[Date "2022.09.17"]
[Round "2.40"]
[White "Xia, Joshua"]
[Black "Jani, Aakash"]
[Result "0-1"]
[ECO "C78"]
[WhiteElo "1673"]
[BlackElo "1249"]
[Annotator "NA COMBH"]
[PlyCount "125"]
[EventDate "2022.09.16"]
[EventType "swiss"]
[EventCountry "GEO"]
[SourceTitle "playchess.com"]
[Source "ChessBase"]
[SourceQuality "1"]
[TimeControl "5400+30"]

1. e4 {[%emt 0:01:00]} e5 {[%emt 0:01:00]} 2. Nf3 {[%emt 0:00:30]} Nc6 {[%emt 0:00:30]} 3. Bb5 {[%emt 0:00:00]} a6 {[%emt 0:00:30]} 4. Ba4 {[%emt 0:00:00]} b5 {[%emt 0:00:30]} 5. Bb3 {[%emt 0:00:00]} Bc5 {[%emt 0:00:30]} 6. c3 {[%emt 0:00:00]} Nf6 {[%emt 0:00:30]} 7. O-O {[%emt 0:01:30]} d6 {[%emt 0:00:30]} 8. d4 {[%emt 0:00:30]} Bb6 {[%emt 0:01:30]} 9. Be3 {[%emt 0:00:30]} Bb7 {[%emt 0:00:30]} 10. a4 {[%emt 0:02:30]} O-O {[%emt 0:02:30]} 11. Nbd2 {[%emt 0:00:30]} Re8 {[%emt 0:01:30]} 12. Bc2 {[%emt 0:03:30]} h6 {[%emt 0:02:30]} 13. d5 {[%emt 0:00:30]} Ne7 {[%emt 0:01:30]} 14. Bxb6 {[%emt 0:00:00]} cxb6 {[%emt 0:00:30]} 15. axb5 {[%emt 0:00:00]} axb5 {[%emt 0:00:30]} 16. Qe2 {[%emt 0:01:30]} b4 {[%emt 0:03:30]} 17. cxb4 {[%emt 0:00:30]} Ng6 {[%emt 0:00:00]} 18. Qb5 {[%emt 0:00:30]} Qc7 {[%emt 0:04:00]} 19. Bd3 {[%emt 0:01:30]} Nf4 {[%emt 0:00:30]} 20. g3 {[%emt 0:03:30]} Nxd3 {[%emt 0:01:30]} 21. Qxd3 {[%emt 0:00:30]} Qc8 {[%emt 0:02:30]} 22. Rfc1 {[%emt 0:01:30]} Rxa1 {[%emt 0:00:30]} 23. Rxa1 {[%emt 0:02:30]} Qc7 {[%emt 0:02:30]} 24. Kg2 {[%emt 0:01:30]} Rc8 {[%emt 0:00:30]} 25. Qb5 {[%emt 0:01:30]} Nd7 {[%emt 0:01:30]} 26. Ra7 {[%emt 0:00:30]} Nf8 {[%emt 0:02:30]} 27. Nb3 {[%emt 0:01:30]} Ng6 {[%emt 0:00:30]} 28. Na5 {[%emt 0:02:30]} bxa5 {[%emt 0:01:30]} 29. Rxb7 {[%emt 0:00:30]} Qc2 {[%emt 0:00:30]} 30. bxa5 {[%emt 0:00:30]} Qxe4 {[%emt 0:00:30]} 31. Rb8 {[%emt 0:00:30]} Rxb8 {[%emt 0:03:30]} 32. Qxb8+ {[%emt 0:00:30]} Kh7 {[%emt 0:00:00]} 33. Qxd6 {[%emt 0:03:30]} h5 {[%emt 0:01:00]} 34. a6 {[%emt 0:02:30]} h4 {[%emt 0:00:30]} 35. Qd7 {[%emt 0:00:30]} f5 {[%emt 0:00:30]} 36. a7 {[%emt 0:48:30]} h3+ {[%emt 0:00:00]} 37. Kf1 {[%emt 0:00:30]} Qxf3 {[%emt 0:01:00]} 38. Qa4 {[%emt 0:00:00]} Qd3+ {[%emt 0:02:30]} 39. Ke1 {[%emt 0:00:00]} Qb1+ {[%emt 0:00:30]} 40. Kd2 {[%emt 0:00:30]} Qxb2+ {[%emt 0:00:00]} 41. Kd3 {[%emt 0:00:30]} e4+ {[%emt 0:01:00]} 42. Kc4 {[%emt 0:00:00]} Ne5+ {[%emt 0:00:30]} 43. Kc5 {[%emt 0:00:00]} Qc3+ {[%emt 0:05:30]} 44. Kb6 {[%emt 0:03:48]} Nc4+ {[%emt 0:00:30]} 45. Kc7 {[%emt 0:02:59]} Qe5+ {[%emt 0:01:30]} 46. Kb7 {[%emt 0:09:31]} Qxd5+ {[%emt 0:00:00]} 47. Kb8 {[%emt 0:00:41]} Qd8+ {[%emt 0:02:00]} 48. Kb7 {[%emt 0:00:08]} Nd6+ {[%emt 0:00:30]} 49. Ka6 {[%emt 0:00:18]} Qa8 {[%emt 0:10:30]} 50. Qd7 {[%emt 0:05:30]} Qd5 {[%emt 0:00:30]} 51. Kb6 {[%emt 0:00:24]} Nc4+ {[%emt 0:00:30]} 52. Kc7 {[%emt 0:00:11]} Qc5+ {[%emt 0:00:30]} 53. Kb8 {[%emt 0:00:56]} Nb6 {[%emt 0:01:30]} 54. Qc7 {[%emt 0:00:28]} Qxf2 {[%emt 0:01:30]} 55. Kb7 {[%emt 0:00:54]} Nd5 {[%emt 0:02:30]} 56. Qf7 {[%emt 0:02:15]} Qb6+ {[%emt 0:01:30]} 57. Kc8 {[%emt 0:00:09]} Qc5+ {[%emt 0:00:30]} 58. Kb8 {[%emt 0:00:26]} Qd6+ {[%emt 0:01:30]} 59. Kb7 {[%emt 0:00:22]} Qb6+ {[%emt 0:02:30]} 60. Kc8 {[%emt 0:00:05]} Qc6+ {[%emt 0:00:30]} 61. Kb8 {[%emt 0:00:27]} Nb6 {[%emt 0:00:30]} 62. Qxf5+ {[%emt 0:00:20]} Kg8 {[%emt 0:00:30]} 63. a8=R {[%emt 0:03:08]} 0-1

[Event "FIDE World Cadets U8 2022"]
[Site "Batumi"]
[Date "2022.09.17"]
[Round "2.41"]
[White "Zheng, Lerui"]
[Black "Babeikin, Kiryl"]
[Result "1-0"]
[ECO "C42"]
[WhiteElo "1640"]
[BlackElo "1247"]
[Annotator "NA COMBH"]
[PlyCount "111"]
[EventDate "2022.09.16"]
[EventType "swiss"]
[EventCountry "GEO"]
[SourceTitle "playchess.com"]
[Source "ChessBase"]
[SourceQuality "1"]
[TimeControl "5400+30"]

1. e4 {[%emt 0:01:00]} e5 {[%emt 0:01:00]} 2. Nf3 {[%emt 0:00:30]} Nf6 {[%emt 0:00:30]} 3. Nxe5 {[%emt 0:00:00]} d6 {[%emt 0:00:00]} 4. Nf3 {[%emt 0:00:00]} Nxe4 {[%emt 0:00:00]} 5. d4 {[%emt 0:00:00]} d5 {[%emt 0:00:30]} 6. Bd3 {[%emt 0:00:00]} Be7 {[%emt 0:00:00]} 7. O-O {[%emt 0:00:30]} Nc6 {[%emt 0:00:00]} 8. c4 {[%emt 0:00:30]} O-O {[%emt 0:03:30]} 9. Nc3 {[%emt 0:00:30]} Nxc3 {[%emt 0:02:30]} 10. bxc3 {[%emt 0:00:00]} Bg4 {[%emt 0:06:30]} 11. Bf4 {[%emt 0:04:00]} Bd6 {[%emt 0:09:30]} 12. Bxd6 {[%emt 0:01:30]} Qxd6 {[%emt 0:02:30]} 13. Bxh7+ {[%emt 0:00:30]} Kxh7 {[%emt 0:00:30]} 14. Ng5+ {[%emt 0:00:30]} Kg6 {[%emt 0:05:30]} 15. Qxg4 {[%emt 0:01:30]} f5 {[%emt 0:00:30]} 16. Qf3 {[%emt 0:01:30]} Kxg5 {[%emt 0:00:00]} 17. cxd5 {[%emt 0:04:30]} Nd8 {[%emt 0:01:00]} 18. c4 {[%emt 0:00:30]} Kf6 {[%emt 0:03:30]} 19. c5 {[%emt 0:00:30]} Qd7 {[%emt 0:00:30]} 20. Rfe1 {[%emt 0:02:30]} Kf7 {[%emt 0:01:30]} 21. d6 {[%emt 0:03:30]} cxd6 {[%emt 0:01:30]} 22. Qd5+ {[%emt 0:00:30]} Kg6 {[%emt 0:00:30]} 23. cxd6 {[%emt 0:00:30]} Re8 {[%emt 0:01:30]} 24. h4 {[%emt 0:26:30]} Nc6 {[%emt 0:00:30]} 25. Re3 {[%emt 0:13:30]} Rxe3 {[%emt 0:01:30]} 26. fxe3 {[%emt 0:00:30]} Re8 {[%emt 0:00:00]} 27. Rf1 {[%emt 0:05:30]} Re4 {[%emt 0:11:00]} 28. h5+ {[%emt 0:00:30]} Kg5 {[%emt 0:00:00]} 29. h6 {[%emt 0:01:30]} gxh6 {[%emt 0:06:00]} 30. Qg8+ {[%emt 0:04:30]} Kh5 {[%emt 0:00:30]} 31. Rf3 {[%emt 0:01:30]} Rh4 {[%emt 0:00:30]} 32. Rg3 {[%emt 0:00:30]} Rg4 {[%emt 0:01:30]} 33. Rh3+ {[%emt 0:00:30]} Rh4 {[%emt 0:00:00]} 34. g4+ {[%emt 0:00:30]} fxg4 {[%emt 0:00:00]} 35. Qd5+ {[%emt 0:00:00]} Kg6 {[%emt 0:02:30]} 36. Rxh4 {[%emt 0:00:00]} Kg7 {[%emt 0:02:30]} 37. Qh5 {[%emt 0:03:30]} Qxd6 {[%emt 0:00:30]} 38. Rxg4+ {[%emt 0:01:30]} Kf8 {[%emt 0:01:30]} 39. Qf5+ {[%emt 0:00:30]} Ke8 {[%emt 0:00:30]} 40. Rg8+ {[%emt 0:01:30]} Ke7 {[%emt 0:00:30]} 41. Qh7+ {[%emt 0:00:30]} Ke6 {[%emt 0:00:30]} 42. Rg6+ {[%emt 0:00:30]} Kd5 {[%emt 0:00:30]} 43. Qf7+ {[%emt 0:00:30]} Ke4 {[%emt 0:00:30]} 44. Rxd6 {[%emt 0:00:00]} Kxe3 {[%emt 0:00:30]} 45. Qf2+ {[%emt 0:00:00]} Kd3 {[%emt 0:00:00]} 46. Rxc6 {[%emt 0:00:30]} bxc6 {[%emt 0:00:00]} 47. Qf6 {[%emt 0:00:00]} h5 {[%emt 0:00:30]} 48. Qxc6 {[%emt 0:00:00]} h4 {[%emt 0:00:00]} 49. Qh6 {[%emt 0:00:30]} a5 {[%emt 0:01:00]} 50. d5 {[%emt 0:00:00]} a4 {[%emt 0:00:30]} 51. d6 {[%emt 0:00:00]} a3 {[%emt 0:00:30]} 52. d7 {[%emt 0:00:30]} h3 {[%emt 0:00:30]} 53. d8=Q+ {[%emt 0:00:30]} Kc2 {[%emt 0:00:00]} 54. Qhd2+ {[%emt 0:00:00]} Kb1 {[%emt 0:00:00]} 55. Q8d3+ {[%emt 0:00:00]} Ka1 {[%emt 0:00:00]} 56. Qc1+ {[%emt 0:00:00]} 1-0

[Event "FIDE World Cadets U8 2022"]
[Site "Batumi"]
[Date "2022.09.17"]
[Round "2.42"]
[White "Xing, Zeqi"]
[Black "Ling, Chenxuan"]
[Result "0-1"]
[ECO "D13"]
[WhiteElo "1256"]
[BlackElo "1601"]
[Annotator "NA COMBH"]
[PlyCount "85"]
[EventDate "2022.09.16"]
[EventType "swiss"]
[EventCountry "GEO"]
[SourceTitle "playchess.com"]
[Source "ChessBase"]
[SourceQuality "1"]
[TimeControl "5400+30"]

1. d4 d5 2. c4 c6 3. cxd5 cxd5 4. Nc3 Nf6 5. Bf4 Nc6 6. e3 a6 7. Nf3 Bf5 8. Ne5 e6 9. Qa4 Qb6 10. Nxc6 bxc6 11. Qb3 Qxb3 12. axb3 a5 13. f3 Bb4 14. g4 Bc2 15. Kf2 Bxc3 16. bxc3 Bxb3 17. Bd6 Kd7 18. Be5 a4 19. Ra3 Ne8 20. Bd3 f6 21. Bg3 Nd6 22. Bxd6 Kxd6 23. Rc1 c5 24. Bc2 c4 25. e4 Rab8 26. Ke3 h5 27. g5 fxg5 28. Bxb3 axb3 29. e5+ Kc6 30. Ra6+ Rb6 31. Ra7 Rb7 32. Rxb7 Kxb7 33. f4 gxf4+ 34. Kxf4 Rf8+ 35. Kg5 Rf2 36. h4 b2 37. Rb1 Kb6 38. Kxh5 Kb5 39. Kg6 Ka4 40. Rxb2 Rxb2 41. Kxg7 Kb3 42. Kf6 Kxc3 43. Kxe6 0-1

[Event "FIDE World Cadets U8 2022"]
[Site "Batumi"]
[Date "2022.09.17"]
[Round "2.43"]
[White "Xu, Ryan"]
[Black "Saqar Essa Khamis"]
[Result "1/2-1/2"]
[ECO "E01"]
[WhiteElo "1822"]
[BlackElo "1237"]
[Annotator "NA COMBH"]
[PlyCount "89"]
[EventDate "2022.09.16"]
[EventType "swiss"]
[EventCountry "GEO"]
[SourceTitle "playchess.com"]
[Source "ChessBase"]
[SourceQuality "1"]
[TimeControl "5400+30"]

1. d4 d5 2. c4 c6 3. Nf3 Nf6 4. g3 e6 5. Bg2 Bd6 6. O-O Nbd7 7. Nbd2 O-O 8. Qc2 Re8 9. e4 {[%emt 0:03:00]} dxe4 {[%emt 0:10:00]} 10. Nxe4 {[%emt 0:00:30]} Nxe4 {[%emt 0:00:30]} 11. Qxe4 {[%emt 0:00:30]} e5 {[%emt 0:00:30]} 12. dxe5 {[%emt 0:00:30]} Nxe5 {[%emt 0:00:30]} 13. Nxe5 {[%emt 0:00:30]} Bxe5 {[%emt 0:00:30]} 14. Qc2 {[%emt 0:00:30]} Qf6 {[%emt 0:00:30]} 15. Re1 {[%emt 0:00:30]} Bf5 {[%emt 0:00:30]} 16. Be4 {[%emt 0:00:30]} Bd4 {[%emt 0:00:30]} 17. Bg5 {[%emt 0:00:30]} Qxg5 {[%emt 0:00:30]} 18. Bxf5 {[%emt 0:00:30]} g6 {[%emt 0:00:30]} 19. Bh3 {[%emt 0:00:30]} Qf6 {[%emt 0:00:30]} 20. Rxe8+ {[%emt 0:00:30]} Rxe8 {[%emt 0:00:30]} 21. Rd1 {[%emt 0:00:30]} Bxb2 {[%emt 0:00:30]} 22. Rd7 {[%emt 0:00:30]} Re1+ {[%emt 0:00:30]} 23. Bf1 {[%emt 0:00:30]} Rc1 {[%emt 0:00:30]} 24. Qd2 {[%emt 0:00:30]} Ra1 {[%emt 0:00:30]} 25. Rxb7 {[%emt 0:00:30]} Bd4 {[%emt 0:00:30]} 26. Rd7 {[%emt 0:00:30]} Bb6 {[%emt 0:00:30]} 27. Kg2 {[%emt 0:00:30]} Rb1 {[%emt 0:00:30]} 28. c5 {[%emt 0:00:30]} Bxc5 {[%emt 0:00:30]} 29. Bc4 {[%emt 0:00:30]} Rb2 {[%emt 0:00:30]} 30. Rxf7 {[%emt 0:00:30]} Rxd2 {[%emt 0:00:30]} 31. Rxf6+ {[%emt 0:00:30]} Kg7 {[%emt 0:00:30]} 32. Rxc6 {[%emt 0:00:30]} Rxf2+ {[%emt 0:00:30]} 33. Kh3 {[%emt 0:00:30]} Bb6 {[%emt 0:00:30]} 34. Rd6 {[%emt 0:00:30]} Rc2 {[%emt 0:00:30]} 35. Rd7+ {[%emt 0:00:30]} Kf6 {[%emt 0:00:30]} 36. Bb3 {[%emt 0:00:30]} Rc7 {[%emt 0:00:30]} 37. Rxc7 {[%emt 0:00:30]} Bxc7 {[%emt 0:00:30]} 38. Kg4 {[%emt 0:00:30]} h6 {[%emt 0:00:30]} 39. Kf3 {[%emt 0:00:30]} a5 {[%emt 0:00:30]} 40. Bc2 {[%emt 0:00:30]} h5 {[%emt 0:00:30]} 41. h4 {[%emt 0:00:30]} g5 {[%emt 0:00:30]} 42. hxg5+ {[%emt 0:00:30]} Kxg5 {[%emt 0:00:30]} 43. Bd3 {[%emt 0:00:30]} a4 {[%emt 0:00:30]} 44. a3 {[%emt 0:00:30]} Bd6 {[%emt 0:00:30]} 45. Bb5 {[%emt 0:00:30]} 1/2-1/2

[Event "FIDE World Cadets U8 2022"]
[Site "Batumi"]
[Date "2022.09.17"]
[Round "2.44"]
[White "Sanikommu Jaideep Reddy"]
[Black "Ghoreishiamiri, SeyedKian"]
[Result "0-1"]
[ECO "D05"]
[WhiteElo "1239"]
[BlackElo "1583"]
[Annotator "NA COMBH"]
[PlyCount "88"]
[EventDate "2022.09.16"]
[EventType "swiss"]
[EventCountry "GEO"]
[SourceTitle "playchess.com"]
[Source "ChessBase"]
[SourceQuality "1"]
[TimeControl "5400+30"]

1. d4 {[%emt 0:02:00]} Nf6 {[%emt 0:01:00]} 2. e3 {[%emt 0:00:30]} e6 {[%emt 0:00:30]} 3. Nf3 {[%emt 0:00:30]} d5 {[%emt 0:00:00]} 4. Nbd2 {[%emt 0:01:30]} Bd6 {[%emt 0:00:00]} 5. Bd3 {[%emt 0:03:30]} O-O {[%emt 0:00:30]} 6. b3 {[%emt 0:01:30]} b6 {[%emt 0:00:30]} 7. Bb2 {[%emt 0:00:30]} Bb7 {[%emt 0:00:30]} 8. O-O {[%emt 0:01:30]} Nbd7 {[%emt 0:00:30]} 9. Ne5 {[%emt 0:02:30]} Ne4 {[%emt 0:01:30]} 10. f3 {[%emt 0:10:30]} Nxd2 {[%emt 0:01:30]} 11. Qxd2 {[%emt 0:00:00]} f6 {[%emt 0:00:30]} 12. Ng4 {[%emt 0:03:00]} c5 {[%emt 0:02:30]} 13. f4 {[%emt 0:05:30]} Rc8 {[%emt 0:03:30]} 14. Qf2 {[%emt 0:17:30]} c4 {[%emt 0:02:30]} 15. Bxh7+ {[%emt 0:03:30]} Kxh7 {[%emt 0:00:30]} 16. Qh4+ {[%emt 0:00:30]} Kg6 {[%emt 0:01:30]} 17. Qg3 {[%emt 0:04:30]} Kf7 {[%emt 0:01:30]} 18. Ne5+ {[%emt 0:04:30]} Bxe5 {[%emt 0:01:30]} 19. fxe5 {[%emt 0:00:30]} f5 {[%emt 0:00:30]} 20. Ba3 {[%emt 0:01:30]} Rh8 {[%emt 0:00:30]} 21. Rf4 {[%emt 0:07:30]} Rh5 {[%emt 0:01:30]} 22. h4 {[%emt 0:03:30]} cxb3 {[%emt 0:01:30]} 23. cxb3 {[%emt 0:04:30]} g5 {[%emt 0:03:30]} 24. Qf3 {[%emt 0:07:19]} Kg6 {[%emt 0:02:30]} 25. g4 {[%emt 0:04:32]} gxf4 {[%emt 0:00:30]} 26. gxh5+ {[%emt 0:00:30]} Kh6 {[%emt 0:00:30]} 27. Qxf4+ {[%emt 0:00:56]} Kxh5 {[%emt 0:00:00]} 28. Qf3+ {[%emt 0:00:36]} Kh6 {[%emt 0:00:00]} 29. Qf4+ {[%emt 0:00:13]} Kh7 {[%emt 0:00:30]} 30. Kh1 {[%emt 0:00:46]} Qe8 {[%emt 0:04:30]} 31. Rg1 {[%emt 0:02:01]} Qh5 {[%emt 0:00:30]} 32. Rg5 {[%emt 0:02:38]} Qh6 {[%emt 0:02:30]} 33. Qg3 {[%emt 0:02:21]} Ba6 {[%emt 0:00:30]} 34. Bd6 {[%emt 0:03:08]} Be2 {[%emt 0:00:30]} 35. Qf2 {[%emt 0:01:01]} Bg4 {[%emt 0:00:30]} 36. Kh2 {[%emt 0:00:19]} Rc2 {[%emt 0:01:30]} 37. Qxc2 {[%emt 0:00:09]} Qxh4+ {[%emt 0:00:30]} 38. Kg1 {[%emt 0:00:52]} Qxg5 {[%emt 0:00:00]} 39. Qc7 {[%emt 0:00:24]} Qxe3+ {[%emt 0:00:00]} 40. Kg2 {[%emt 0:00:30]} Bf3+ {[%emt 0:00:00]} 41. Kg3 {[%emt 0:01:16]} Be4+ {[%emt 0:00:00]} 42. Kh4 {[%emt 0:00:10]} Qf4+ {[%emt 0:00:30]} 43. Kh3 {[%emt 0:00:22]} Qg4+ {[%emt 0:00:30]} 44. Kh2 {[%emt 0:00:30]} Qg2# {[%emt 0:00:00]} 0-1

[Event "FIDE World Cadets U8 2022"]
[Site "Batumi"]
[Date "2022.09.17"]
[Round "2.45"]
[White "Modith Aaroh Mutyalapati"]
[Black "Zhauynbay, Alimzhan"]
[Result "1-0"]
[ECO "B31"]
[WhiteElo "1555"]
[BlackElo "1233"]
[Annotator "NA COMBH"]
[PlyCount "81"]
[EventDate "2022.09.16"]
[EventType "swiss"]
[EventCountry "GEO"]
[SourceTitle "playchess.com"]
[Source "ChessBase"]
[SourceQuality "1"]
[TimeControl "5400+30"]

1. e4 {[%emt 0:01:00]} c5 {[%emt 0:01:00]} 2. Nf3 {[%emt 0:00:00]} Nc6 {[%emt 0:00:30]} 3. Bb5 {[%emt 0:00:00]} g6 {[%emt 0:00:00]} 4. Nc3 {[%emt 0:00:30]} Bg7 {[%emt 0:01:00]} 5. O-O {[%emt 0:01:30]} e6 {[%emt 0:00:30]} 6. Re1 {[%emt 0:01:30]} Nge7 {[%emt 0:01:30]} 7. d3 {[%emt 0:01:30]} a6 {[%emt 0:07:30]} 8. Bxc6 {[%emt 0:01:30]} bxc6 {[%emt 0:01:30]} 9. Be3 {[%emt 0:00:30]} d6 {[%emt 0:02:30]} 10. e5 {[%emt 0:01:30]} Nd5 {[%emt 0:02:30]} 11. Ne4 {[%emt 0:02:30]} Nxe3 {[%emt 0:02:30]} 12. fxe3 {[%emt 0:01:30]} dxe5 {[%emt 0:06:30]} 13. Nxc5 {[%emt 0:03:30]} O-O {[%emt 0:04:30]} 14. d4 {[%emt 0:02:30]} Qe7 {[%emt 0:01:30]} 15. c3 {[%emt 0:00:30]} exd4 {[%emt 0:07:30]} 16. exd4 {[%emt 0:01:30]} Rb8 {[%emt 0:02:30]} 17. Qc2 {[%emt 0:01:30]} Rd8 {[%emt 0:02:30]} 18. Rad1 {[%emt 0:01:30]} Qc7 {[%emt 0:01:30]} 19. b4 {[%emt 0:02:30]} a5 {[%emt 0:03:30]} 20. a3 {[%emt 0:01:30]} Ra8 {[%emt 0:02:30]} 21. Ne5 {[%emt 0:13:30]} axb4 {[%emt 0:01:30]} 22. axb4 {[%emt 0:01:30]} Bxe5 {[%emt 0:01:30]} 23. Rxe5 {[%emt 0:00:30]} Ba6 {[%emt 0:01:30]} 24. Nb3 {[%emt 0:04:30]} Rd5 {[%emt 0:02:30]} 25. Rxd5 {[%emt 0:01:30]} cxd5 {[%emt 0:01:30]} 26. Ra1 {[%emt 0:00:30]} Ra7 {[%emt 0:02:30]} 27. Ra5 {[%emt 0:01:30]} Qf4 {[%emt 0:02:30]} 28. b5 {[%emt 0:07:30]} Qe3+ {[%emt 0:04:30]} 29. Kf1 {[%emt 0:00:30]} Rc7 {[%emt 0:00:30]} 30. bxa6 {[%emt 0:01:30]} Rxc3 {[%emt 0:02:30]} 31. Qxc3 {[%emt 0:00:30]} Qxc3 {[%emt 0:00:30]} 32. a7 {[%emt 0:00:00]} Qd3+ {[%emt 0:00:30]} 33. Kf2 {[%emt 0:01:00]} Qc2+ {[%emt 0:00:30]} 34. Ke1 {[%emt 0:08:30]} Qc3+ {[%emt 0:00:30]} 35. Ke2 {[%emt 0:00:00]} Qxb3 {[%emt 0:01:30]} 36. a8=Q+ {[%emt 0:00:00]} Kg7 {[%emt 0:00:00]} 37. Qa6 {[%emt 0:00:30]} Qc2+ {[%emt 0:00:00]} 38. Kf1 {[%emt 0:00:00]} Qd1+ {[%emt 0:00:30]} 39. Kf2 {[%emt 0:00:00]} Qxd4+ {[%emt 0:01:30]} 40. Ke2 {[%emt 0:01:30]} Qb2+ {[%emt 0:00:30]} 41. Kd3 {[%emt 0:00:00]} 1-0